[Event "Rapid Tournament (RAP)"]
[Site "Biel, Switzerland"]
[Date "2026.07.12"]
[Round "8.1"]
[White "Kozak, Adam"]
[Black "Bu, Xiangzhi"]
[Result "1-0"]
[TimeControl "15 + 5"]
[WhiteTitle "-"]
[BlackTitle "-"]
[WhiteFideId "753246"]
[BlackFideId "8601445"]
[WhiteElo "2592"]
[BlackElo "2583"]

1. Nf3 {[%clk 00:15:09]} {[%emt 00:00:02]} Nf6 {[%clk 00:15:09]} 2. b3 {[%clk
00:15:12]} {[%emt 00:00:01]} d6 {[%clk 00:15:08]} {[%emt 00:00:06]} 3. d4
{[%clk 00:15:09]} {[%emt 00:00:09]} g6 {[%clk 00:15:01]} {[%emt 00:00:11]} 4.
Bb2 {[%clk 00:15:06]} {[%emt 00:00:08]} Bg7 {[%clk 00:15:05]} {[%emt 00:00:01]}
5. g3 {[%clk 00:15:10]} {[%emt 00:00:01]} O-O {[%clk 00:15:08]} {[%emt
00:00:02]} 6. Bg2 {[%clk 00:15:13]} {[%emt 00:00:01]} e5 {[%clk 00:14:57]}
{[%emt 00:00:16]} 7. dxe5 {[%clk 00:15:10]} {[%emt 00:00:08]} Nfd7 {[%clk
00:14:46]} {[%emt 00:00:16]} 8. Nc3 {[%clk 00:14:19]} {[%emt 00:00:56]} dxe5
{[%clk 00:14:05]} {[%emt 00:00:47]} 9. Qd2 {[%clk 00:13:59]} {[%emt 00:00:25]}
Nb6 {[%clk 00:13:20]} {[%emt 00:00:50]} 10. O-O-O {[%clk 00:13:20]} {[%emt
00:00:43]} Qxd2+ {[%clk 00:11:29]} {[%emt 00:01:56]} 11. Nxd2 {[%clk 00:12:30]}
{[%emt 00:00:54]} Na6 {[%clk 00:10:05]} {[%emt 00:01:30]} 12. a4 {[%clk
00:12:26]} {[%emt 00:00:09]} c6 {[%clk 00:09:17]} {[%emt 00:00:54]} 13. a5
{[%clk 00:10:35]} {[%emt 00:01:56]} Nd7 {[%clk 00:09:10]} {[%emt 00:00:12]} 14.
Nde4 {[%clk 00:10:37]} {[%emt 00:00:02]} f5 {[%clk 00:08:53]} {[%emt 00:00:22]}
15. Nd6 {[%clk 00:10:16]} {[%emt 00:00:26]} Ndc5 {[%clk 00:08:46]} {[%emt
00:00:12]} 16. e3 {[%clk 00:06:28]} {[%emt 00:03:53]} Be6 {[%clk 00:08:06]}
{[%emt 00:00:45]} 17. Ba3 {[%clk 00:04:46]} {[%emt 00:01:47]} e4 {[%clk
00:04:35]} {[%emt 00:03:36]} 18. Ne2 {[%clk 00:04:41]} {[%emt 00:00:10]} Rfd8
{[%clk 00:04:25]} {[%emt 00:00:15]} 19. Nf4 {[%clk 00:04:08]} {[%emt 00:00:38]}
Bf8 {[%clk 00:04:14]} {[%emt 00:00:16]} 20. Bxc5 {[%clk 00:00:43]} {[%emt
00:03:29]} Nxc5 {[%clk 00:04:16]} {[%emt 00:00:03]} 21. Nxb7 {[%clk 00:00:45]}
{[%emt 00:00:03]} Nxb7 {[%clk 00:03:04]} {[%emt 00:01:17]} 22. Nxe6 {[%clk
00:00:47]} {[%emt 00:00:03]} Ba3+ {[%clk 00:02:56]} {[%emt 00:00:13]} 23. Kb1
{[%clk 00:00:51]} {[%emt 00:00:01]} Rxd1+ {[%clk 00:02:59]} {[%emt 00:00:02]}
24. Rxd1 {[%clk 00:00:54]} {[%emt 00:00:01]} Re8 {[%clk 00:02:48]} {[%emt
00:00:16]} 25. a6 {[%clk 00:00:21]} {[%emt 00:00:39]} Nd6 {[%clk 00:02:52]} 26.
Nd4 {[%clk 00:00:15]} {[%emt 00:00:10]} c5 {[%clk 00:01:18]} {[%emt 00:01:40]}
27. Ka2 {[%clk 00:00:15]} {[%emt 00:00:05]} Bb4 {[%emt 00:00:05]} 28. Nc6
{[%clk 00:00:18]} {[%emt 00:00:02]} Nb5 {[%clk 00:01:23]} 29. Rd7 {[%clk
00:00:08]} {[%emt 00:00:14]} Re6 {[%clk 00:01:27]} {[%emt 00:00:01]} 30. Nxb4
{[%clk 00:00:07]} {[%emt 00:00:06]} 1-0

[Event "Rapid Tournament (RAP)"]
[Site "Biel, Switzerland"]
[Date "2026.07.12"]
[Round "8.2"]
[White "Alexakis, Dimitris"]
[Black "Ganguly, Surya Shekhar"]
[Result "1-0"]
[TimeControl "15 + 5"]
[WhiteTitle "-"]
[BlackTitle "-"]
[WhiteFideId "4277023"]
[BlackFideId "5002150"]
[WhiteElo "2518"]
[BlackElo "2545"]

1. e4 {[%clk 00:15:08]} {[%emt 00:13:53]} c5 {[%clk 00:15:09]} {[%emt
00:00:01]} 2. Nf3 {[%clk 00:15:11]} {[%emt 00:00:02]} d6 {[%clk 00:15:13]} 3.
d4 {[%clk 00:15:10]} {[%emt 00:00:06]} cxd4 {[%clk 00:15:17]} {[%emt 00:00:01]}
4. Nxd4 {[%clk 00:15:13]} {[%emt 00:00:02]} Nf6 {[%clk 00:15:21]} 5. f3 {[%clk
00:15:16]} {[%emt 00:00:02]} Nc6 {[%clk 00:15:09]} {[%emt 00:00:17]} 6. c4
{[%clk 00:15:19]} {[%emt 00:00:03]} e6 {[%clk 00:15:09]} {[%emt 00:00:05]} 7.
Nc3 {[%clk 00:15:22]} {[%emt 00:00:02]} Be7 {[%clk 00:15:13]} {[%emt 00:00:01]}
8. Be3 {[%clk 00:15:24]} {[%emt 00:00:02]} O-O {[%clk 00:15:15]} {[%emt
00:00:02]} 9. Qd2 {[%clk 00:15:03]} {[%emt 00:00:26]} d5 {[%clk 00:15:11]}
{[%emt 00:00:09]} 10. exd5 {[%clk 00:15:06]} {[%emt 00:00:03]} exd5 {[%clk
00:15:09]} {[%emt 00:00:07]} 11. O-O-O {[%clk 00:15:07]} {[%emt 00:00:04]} Nxd4
{[%clk 00:13:30]} {[%emt 00:01:44]} 12. Bxd4 {[%clk 00:14:14]} {[%emt
00:00:58]} Be6 {[%clk 00:12:42]} {[%emt 00:00:53]} 13. g4 {[%clk 00:10:25]}
{[%emt 00:03:54]} dxc4 {[%clk 00:12:24]} {[%emt 00:00:23]} 14. g5 {[%clk
00:10:17]} {[%emt 00:00:13]} Nd5 {[%clk 00:12:14]} {[%emt 00:00:15]} 15. h4
{[%clk 00:10:12]} {[%emt 00:00:10]} Bb4 {[%clk 00:10:33]} {[%emt 00:01:45]} 16.
h5 {[%clk 00:09:04]} {[%emt 00:01:14]} Nxc3 {[%clk 00:08:57]} {[%emt 00:01:41]}
17. bxc3 {[%clk 00:08:52]} {[%emt 00:00:16]} Be7 {[%clk 00:08:46]} {[%emt
00:00:15]} 18. g6 {[%clk 00:04:00]} {[%emt 00:04:57]} fxg6 {[%clk 00:08:26]}
{[%emt 00:00:26]} 19. hxg6 {[%clk 00:03:59]} {[%emt 00:00:07]} h6 {[%clk
00:06:02]} {[%emt 00:02:29]} 20. Kb2 {[%clk 00:02:57]} {[%emt 00:01:07]} Bf6
{[%clk 00:05:49]} {[%emt 00:00:18]} 21. Qe3 {[%clk 00:01:25]} {[%emt 00:01:38]}
Bxd4 {[%clk 00:05:01]} {[%emt 00:00:52]} 22. Qxe6+ {[%clk 00:01:23]} {[%emt
00:00:08]} 1-0

[Event "Rapid Tournament (RAP)"]
[Site "Biel, Switzerland"]
[Date "2026.07.12"]
[Round "8.3"]
[White "Aronyak, Ghosh"]
[Black "Maier, Christian"]
[Result "1-0"]
[TimeControl "15 + 5"]
[WhiteTitle "-"]
[BlackTitle "-"]
[WhiteFideId "25072846"]
[BlackFideId "4601955"]
[WhiteElo "2482"]
[BlackElo "2314"]

1. d4 {[%clk 00:15:07]} {[%emt 00:00:02]} Nf6 {[%clk 00:15:06]} {[%emt
00:00:05]} 2. c4 {[%clk 00:15:06]} {[%emt 00:00:06]} e6 {[%clk 00:15:08]}
{[%emt 00:00:03]} 3. Bf4 {[%clk 00:15:06]} {[%emt 00:00:05]} d5 {[%clk
00:14:48]} {[%emt 00:00:25]} 4. Nc3 {[%clk 00:15:07]} {[%emt 00:00:04]} a6
{[%clk 00:14:39]} {[%emt 00:00:14]} 5. c5 {[%clk 00:14:26]} {[%emt 00:00:47]}
Nc6 {[%clk 00:13:55]} {[%emt 00:00:49]} 6. e3 {[%clk 00:14:18]} {[%emt
00:00:12]} b6 {[%clk 00:13:49]} {[%emt 00:00:12]} 7. b4 {[%clk 00:13:22]}
{[%emt 00:01:01]} Bd7 {[%clk 00:12:19]} {[%emt 00:01:35]} 8. a3 {[%clk
00:13:08]} {[%emt 00:00:19]} g6 {[%clk 00:12:03]} {[%emt 00:00:21]} 9. Nf3
{[%clk 00:13:03]} {[%emt 00:00:10]} Nh5 {[%clk 00:11:32]} {[%emt 00:00:36]} 10.
Bg5 {[%clk 00:12:14]} {[%emt 00:00:54]} Be7 {[%clk 00:11:32]} {[%emt 00:00:06]}
11. Bh6 {[%clk 00:12:00]} {[%emt 00:00:19]} Bf8 {[%clk 00:11:35]} {[%emt
00:00:02]} 12. Bxf8 {[%clk 00:12:02]} {[%emt 00:00:02]} Kxf8 {[%clk 00:11:39]}
{[%emt 00:00:01]} 13. Bd3 {[%clk 00:11:50]} {[%emt 00:00:17]} f5 {[%clk
00:11:38]} {[%emt 00:00:07]} 14. Qe2 {[%clk 00:11:41]} {[%emt 00:00:13]} b5
{[%clk 00:11:03]} {[%emt 00:00:40]} 15. O-O {[%clk 00:11:26]} {[%emt 00:00:20]}
Kg7 {[%clk 00:11:06]} {[%emt 00:00:02]} 16. Qb2 {[%clk 00:10:55]} {[%emt
00:00:36]} Rb8 {[%clk 00:11:03]} {[%emt 00:00:08]} 17. Ne2 {[%clk 00:10:42]}
{[%emt 00:00:19]} g5 {[%clk 00:10:52]} {[%emt 00:00:16]} 18. Ne5 {[%clk
00:10:40]} {[%emt 00:00:07]} Nf6 {[%clk 00:10:41]} {[%emt 00:00:16]} 19. Qc3
{[%clk 00:10:26]} {[%emt 00:00:18]} Rf8 {[%clk 00:10:19]} {[%emt 00:00:27]} 20.
f3 {[%clk 00:10:16]} {[%emt 00:00:16]} h5 {[%clk 00:09:34]} {[%emt 00:00:50]}
21. Qd2 {[%clk 00:09:50]} {[%emt 00:00:30]} h4 {[%clk 00:07:01]} {[%emt
00:02:38]} 22. Rae1 {[%clk 00:08:18]} {[%emt 00:01:37]} Nxe5 {[%clk 00:06:44]}
{[%emt 00:00:22]} 23. dxe5 {[%clk 00:08:21]} {[%emt 00:00:02]} Ng8 {[%clk
00:06:48]} 24. Nd4 {[%clk 00:08:11]} {[%emt 00:00:15]} Ne7 {[%clk 00:06:14]}
{[%emt 00:00:39]} 25. e4 {[%clk 00:07:50]} {[%emt 00:00:26]} dxe4 {[%clk
00:05:55]} {[%emt 00:00:23]} 26. fxe4 {[%clk 00:07:15]} {[%emt 00:00:39]} f4
{[%clk 00:05:54]} {[%emt 00:00:06]} 27. Qa2 {[%clk 00:06:25]} {[%emt 00:00:56]}
Nc6 {[%clk 00:04:20]} {[%emt 00:01:39]} 28. Nxc6 {[%clk 00:06:03]} {[%emt
00:00:27]} Bxc6 {[%clk 00:04:24]} 29. Qxe6 {[%clk 00:06:05]} {[%emt 00:00:04]}
Qxd3 {[%clk 00:04:21]} {[%emt 00:00:08]} 30. Qxc6 {[%clk 00:06:08]} {[%emt
00:00:02]} Qd4+ {[%clk 00:04:25]} 31. Kh1 {[%clk 00:05:53]} {[%emt 00:00:19]}
Qxe5 {[%clk 00:04:29]} {[%emt 00:00:01]} 32. Rd1 {[%clk 00:05:49]} {[%emt
00:00:08]} Rbd8 {[%clk 00:04:12]} {[%emt 00:00:23]} 33. h3 {[%clk 00:05:39]}
{[%emt 00:00:15]} f3 {[%clk 00:04:03]} {[%emt 00:00:14]} 34. gxf3 {[%clk
00:05:09]} {[%emt 00:00:35]} Rf6 {[%clk 00:03:40]} {[%emt 00:00:28]} 35. Rd7+
{[%clk 00:04:49]} {[%emt 00:00:25]} Kg6 {[%clk 00:02:25]} {[%emt 00:01:20]} 36.
Qxc7 {[%clk 00:04:11]} {[%emt 00:00:44]} Qxc7 {[%clk 00:02:29]} {[%emt
00:00:01]} 37. Rxc7 {[%clk 00:04:15]} {[%emt 00:00:01]} Rd3 {[%clk 00:02:33]}
38. Kg2 {[%clk 00:04:13]} {[%emt 00:00:07]} Rxa3 {[%clk 00:02:35]} {[%emt
00:00:03]} 39. Rd7 {[%clk 00:04:16]} {[%emt 00:00:02]} Rc3 {[%clk 00:01:57]}
{[%emt 00:00:43]} 40. Rd4 {[%clk 00:04:03]} {[%emt 00:00:17]} Re6 {[%clk
00:01:59]} {[%emt 00:00:03]} 41. Rfd1 {[%clk 00:03:56]} {[%emt 00:00:12]} a5
{[%clk 00:01:55]} {[%emt 00:00:09]} 42. Rd6 {[%clk 00:03:04]} {[%emt 00:00:57]}
Kf6 {[%clk 00:01:52]} {[%emt 00:00:08]} 43. bxa5 {[%clk 00:02:35]} {[%emt
00:00:34]} Rxc5 {[%clk 00:01:55]} {[%emt 00:00:02]} 44. Rxe6+ {[%clk 00:02:35]}
{[%emt 00:00:04]} Kxe6 {[%clk 00:01:59]} 45. Ra1 {[%clk 00:02:39]} {[%emt
00:00:02]} Rc2+ {[%clk 00:01:48]} {[%emt 00:00:16]} 46. Kf1 {[%clk 00:02:42]}
{[%emt 00:00:02]} Rc7 {[%clk 00:01:34]} {[%emt 00:00:19]} 47. Ke2 {[%clk
00:02:40]} {[%emt 00:00:07]} Kd6 {[%clk 00:01:00]} {[%emt 00:00:39]} 48. a6
{[%clk 00:02:30]} {[%emt 00:00:15]} Ra7 {[%clk 00:01:04]} 49. Ke3 {[%clk
00:02:23]} {[%emt 00:00:12]} Kc5 {[%clk 00:01:09]} 50. e5 {[%clk 00:02:20]}
{[%emt 00:00:08]} b4 {[%clk 00:01:07]} {[%emt 00:00:07]} 51. Kd3 {[%clk
00:01:58]} {[%emt 00:00:27]} Kd5 {[%clk 00:01:08]} {[%emt 00:00:04]} 52. Ra5+
{[%clk 00:02:00]} {[%emt 00:00:03]} Ke6 {[%clk 00:01:08]} {[%emt 00:00:05]} 53.
Kc4 {[%clk 00:02:00]} {[%emt 00:00:05]} Kf5 {[%clk 00:01:09]} {[%emt 00:00:04]}
54. e6+ {[%clk 00:01:42]} {[%emt 00:00:24]} Kxe6 {[%clk 00:01:10]} {[%emt
00:00:04]} 55. Kxb4 {[%clk 00:01:30]} {[%emt 00:00:17]} Kd5 {[%emt 00:00:31]}
1-0

[Event "Rapid Tournament (RAP)"]
[Site "Biel, Switzerland"]
[Date "2026.07.12"]
[Round "8.4"]
[White "Arjun, Kalyan"]
[Black "Ghosh, Diptayan"]
[Result "0-1"]
[TimeControl "15 + 5"]
[WhiteTitle "-"]
[BlackTitle "-"]
[WhiteFideId "35018701"]
[BlackFideId "5045207"]
[WhiteElo "2390"]
[BlackElo "2480"]

1. e4 {[%clk 00:15:09]} e5 {[%clk 00:15:09]} {[%emt 00:00:02]} 2. Nf3 {[%clk
00:15:12]} {[%emt 00:00:01]} Nc6 {[%clk 00:15:13]} {[%emt 00:00:02]} 3. Bb5
{[%clk 00:15:14]} {[%emt 00:00:04]} a6 {[%clk 00:15:14]} {[%emt 00:00:03]} 4.
Ba4 {[%clk 00:15:18]} {[%emt 00:00:01]} Bc5 {[%clk 00:15:18]} {[%emt 00:00:01]}
5. c3 {[%clk 00:15:11]} {[%emt 00:00:12]} Nge7 {[%clk 00:15:21]} {[%emt
00:00:02]} 6. d4 {[%clk 00:15:13]} {[%emt 00:00:02]} exd4 {[%clk 00:15:24]}
{[%emt 00:00:02]} 7. cxd4 {[%clk 00:15:17]} {[%emt 00:00:01]} Bb4+ {[%clk
00:15:28]} {[%emt 00:00:01]} 8. Nc3 {[%clk 00:15:21]} {[%emt 00:00:01]} d5
{[%clk 00:15:32]} {[%emt 00:00:01]} 9. e5 {[%clk 00:15:24]} Bg4 {[%clk
00:15:35]} {[%emt 00:00:02]} 10. a3 {[%clk 00:15:07]} {[%emt 00:00:23]} Ba5
{[%clk 00:15:39]} 11. Be3 {[%clk 00:15:08]} {[%emt 00:00:04]} Qd7 {[%clk
00:15:27]} {[%emt 00:00:17]} 12. h3 {[%clk 00:13:56]} {[%emt 00:01:17]} Bh5
{[%clk 00:15:20]} {[%emt 00:00:12]} 13. Bc2 {[%clk 00:13:43]} {[%emt 00:00:18]}
Bb6 {[%clk 00:15:09]} {[%emt 00:00:16]} 14. Ne2 {[%clk 00:11:23]} {[%emt
00:02:25]} Bg6 {[%clk 00:14:02]} {[%emt 00:01:12]} 15. Ba4 {[%clk 00:10:42]}
{[%emt 00:00:46]} O-O {[%clk 00:12:40]} {[%emt 00:01:28]} 16. Nh4 {[%clk
00:09:53]} {[%emt 00:00:55]} Be4 {[%clk 00:11:16]} {[%emt 00:01:28]} 17. f3
{[%clk 00:09:40]} {[%emt 00:00:18]} Bg6 {[%clk 00:10:24]} {[%emt 00:00:57]} 18.
O-O {[%clk 00:07:26]} {[%emt 00:02:18]} f6 {[%clk 00:09:02]} {[%emt 00:01:27]}
19. exf6 {[%clk 00:05:53]} {[%emt 00:01:38]} Rxf6 {[%clk 00:09:05]} {[%emt
00:00:01]} 20. g4 {[%clk 00:04:40]} {[%emt 00:01:18]} Re8 {[%clk 00:06:20]}
{[%emt 00:02:50]} 21. Bf2 {[%clk 00:04:32]} {[%emt 00:00:14]} Nc8 {[%clk
00:05:53]} {[%emt 00:00:33]} 22. Nc3 {[%clk 00:03:50]} {[%emt 00:00:46]} Bf7
{[%clk 00:05:49]} {[%emt 00:00:09]} 23. Qd3 {[%clk 00:03:20]} {[%emt 00:00:36]}
Nd6 {[%clk 00:05:29]} {[%emt 00:00:24]} 24. Bc2 {[%clk 00:03:01]} {[%emt
00:00:24]} Rh6 {[%clk 00:05:18]} {[%emt 00:00:16]} 25. Rae1 {[%clk 00:02:11]}
{[%emt 00:00:54]} Rxe1 {[%clk 00:04:06]} {[%emt 00:01:17]} 26. Rxe1 {[%clk
00:02:15]} {[%emt 00:00:01]} Rxh4 {[%clk 00:04:01]} {[%emt 00:00:10]} 27. Bxh4
{[%clk 00:02:17]} {[%emt 00:00:03]} Bg6 {[%clk 00:04:06]} 28. Qd1 {[%clk
00:00:28]} {[%emt 00:01:54]} Bxc2 {[%clk 00:03:39]} {[%emt 00:00:32]} 29. Qxc2
{[%clk 00:00:31]} {[%emt 00:00:02]} Nxd4 {[%clk 00:03:42]} {[%emt 00:00:01]} 30.
Qd3 {[%clk 00:00:24]} {[%emt 00:00:12]} Nxf3+ {[%clk 00:03:28]} {[%emt
00:00:19]} 31. Kh1 {[%clk 00:00:24]} {[%emt 00:00:04]} Nxe1 {[%clk 00:02:18]}
{[%emt 00:01:16]} 32. Qxd5+ {[%clk 00:00:27]} {[%emt 00:00:02]} Qf7 {[%clk
00:02:22]} 33. Bxe1 {[%clk 00:00:20]} {[%emt 00:00:13]} c6 {[%clk 00:02:14]}
{[%emt 00:00:13]} 34. Qxf7+ {[%clk 00:00:10]} {[%emt 00:00:15]} Kxf7 {[%clk
00:02:18]} {[%emt 00:00:01]} 35. b3 {[%clk 00:00:11]} {[%emt 00:00:04]} Nb5
{[%clk 00:02:12]} {[%emt 00:00:11]} 36. Ne4 {[%clk 00:00:13]} {[%emt 00:00:03]}
Nxa3 {[%clk 00:02:04]} {[%emt 00:00:14]} 37. Nd6+ {[%clk 00:00:12]} {[%emt
00:00:06]} Ke6 {[%clk 00:02:08]} 38. Nxb7 {[%clk 00:00:15]} {[%emt 00:00:02]}
Nc2 {[%clk 00:02:09]} {[%emt 00:00:03]} 39. Bc3 {[%clk 00:00:10]} {[%emt
00:00:10]} Nd4 {[%clk 00:02:09]} {[%emt 00:00:05]} 40. Na5 {[%clk 00:00:06]}
{[%emt 00:00:10]} Bxa5 {[%clk 00:02:08]} {[%emt 00:00:05]} 41. Bxd4 {[%clk
00:00:10]} g6 {[%clk 00:02:13]} {[%emt 00:00:01]} 42. Kg2 {[%clk 00:00:13]}
{[%emt 00:00:01]} Kd5 {[%clk 00:02:17]} 43. Bg7 {[%clk 00:00:10]} {[%emt
00:00:08]} Ke4 {[%clk 00:02:17]} {[%emt 00:00:05]} 44. h4 {[%clk 00:00:07]}
{[%emt 00:00:08]} Kf4 {[%clk 00:01:41]} {[%emt 00:00:40]} 45. Kh3 {[%clk
00:00:09]} {[%emt 00:00:04]} Bc7 {[%clk 00:01:42]} {[%emt 00:00:04]} 46. Bf6
{[%clk 00:00:07]} {[%emt 00:00:07]} Be5 {[%clk 00:01:43]} {[%emt 00:00:04]} 47.
Be7 {[%clk 00:00:06]} {[%emt 00:00:06]} Bd4 {[%clk 00:01:39]} {[%emt 00:00:09]}
48. h5 {[%clk 00:00:09]} {[%emt 00:00:02]} g5 {[%clk 00:01:38]} {[%emt
00:00:06]} 49. Bd6+ {[%clk 00:00:12]} {[%emt 00:00:03]} Kf3 {[%clk 00:01:42]}
50. h6 {[%clk 00:00:12]} {[%emt 00:00:05]} c5 {[%clk 00:01:41]} {[%emt
00:00:05]} 51. Be7 {[%clk 00:00:12]} {[%emt 00:00:06]} Be3 {[%clk 00:01:45]} 52.
Bd8 {[%clk 00:00:09]} {[%emt 00:00:08]} Ke4 {[%clk 00:01:28]} {[%emt 00:00:21]}
53. Kg2 {[%clk 00:00:13]} Bf4 {[%clk 00:01:27]} {[%emt 00:00:06]} 54. Be7
{[%clk 00:00:14]} {[%emt 00:00:04]} Kd4 {[%clk 00:01:25]} {[%emt 00:00:07]} 55.
Kf3 {[%clk 00:00:19]} a5 {[%clk 00:01:27]} {[%emt 00:00:02]} 56. Bf6+ {[%clk
00:00:19]} {[%emt 00:00:04]} Kd3 {[%clk 00:01:24]} {[%emt 00:00:08]} 57. Be7
{[%clk 00:00:24]} {[%emt 00:00:01]} Kc3 {[%clk 00:01:18]} {[%emt 00:00:11]} 58.
Bxc5 {[%clk 00:00:25]} {[%emt 00:00:03]} Kxb3 {[%clk 00:01:22]} 59. Ke4 {[%clk
00:00:29]} {[%emt 00:00:01]} a4 {[%clk 00:01:27]} 60. Kf5 {[%clk 00:00:33]}
{[%emt 00:00:01]} Bd2 {[%clk 00:01:14]} {[%emt 00:00:17]} 61. Kf6 {[%clk
00:00:10]} {[%emt 00:00:29]} Bb4 {[%clk 00:01:16]} {[%emt 00:00:02]} 62. Bxb4
{[%clk 00:00:14]} Kxb4 {[%clk 00:01:20]} {[%emt 00:00:01]} 63. Kg7 {[%clk
00:00:17]} {[%emt 00:00:01]} a3 {[%clk 00:01:25]} 64. Kxh7 {[%clk 00:00:21]} a2
{[%clk 00:01:29]} 65. Kg8 {[%clk 00:00:22]} {[%emt 00:00:04]} a1=Q {[%emt
00:00:03]} 66. h7 {[%clk 00:00:26]} Qa8+ {[%clk 00:01:33]} {[%emt 00:00:04]} 67.
Kg7 {[%clk 00:00:30]} {[%emt 00:00:02]} Qb7+ {[%clk 00:01:37]} 68. Kg8 {[%clk
00:00:33]} {[%emt 00:00:03]} Qc8+ {[%clk 00:01:42]} 69. Kg7 {[%clk 00:00:37]}
{[%emt 00:00:01]} Qxg4 {[%clk 00:01:43]} {[%emt 00:00:04]} 0-1

[Event "Rapid Tournament (RAP)"]
[Site "Biel, Switzerland"]
[Date "2026.07.12"]
[Round "8.5"]
[White "Filipovic, Branko"]
[Black "Acs, Peter"]
[Result "0-1"]
[TimeControl "15 + 5"]
[WhiteTitle "-"]
[BlackTitle "-"]
[WhiteFideId "14507951"]
[BlackFideId "708020"]
[WhiteElo "2279"]
[BlackElo "2474"]

1. d4 {[%clk 00:15:07]} {[%emt 00:00:03]} Nf6 {[%clk 00:15:08]} {[%emt
00:00:04]} 2. Bf4 {[%clk 00:15:10]} {[%emt 00:00:01]} d6 {[%clk 00:15:07]}
{[%emt 00:00:06]} 3. Nc3 {[%clk 00:14:54]} {[%emt 00:00:21]} Nbd7 {[%clk
00:14:41]} {[%emt 00:00:31]} 4. Nf3 {[%clk 00:14:55]} {[%emt 00:00:04]} g6
{[%clk 00:14:23]} {[%emt 00:00:23]} 5. e4 {[%clk 00:14:55]} {[%emt 00:00:04]}
Bg7 {[%clk 00:14:21]} {[%emt 00:00:07]} 6. Qd2 {[%clk 00:14:49]} {[%emt
00:00:12]} c5 {[%clk 00:13:41]} {[%emt 00:00:45]} 7. Bh6 {[%clk 00:13:03]}
{[%emt 00:01:51]} Bxh6 {[%clk 00:09:41]} {[%emt 00:04:06]} 8. Qxh6 {[%clk
00:13:05]} {[%emt 00:00:03]} cxd4 {[%clk 00:09:39]} {[%emt 00:00:07]} 9. Nxd4
{[%clk 00:13:08]} {[%emt 00:00:02]} Qa5 {[%clk 00:09:01]} {[%emt 00:00:42]} 10.
O-O-O {[%clk 00:12:44]} {[%emt 00:00:29]} Ne5 {[%clk 00:08:44]} {[%emt
00:00:23]} 11. Bb5+ {[%clk 00:11:29]} {[%emt 00:01:20]} Bd7 {[%clk 00:08:34]}
{[%emt 00:00:15]} 12. Bxd7+ {[%clk 00:11:32]} {[%emt 00:00:02]} Nexd7 {[%clk
00:08:31]} {[%emt 00:00:09]} 13. Nb3 {[%clk 00:10:08]} {[%emt 00:01:29]} Qb6
{[%clk 00:08:02]} {[%emt 00:00:34]} 14. f3 {[%clk 00:09:45]} {[%emt 00:00:28]}
Rc8 {[%clk 00:07:37]} {[%emt 00:00:30]} 15. Kb1 {[%clk 00:09:44]} {[%emt
00:00:06]} a5 {[%clk 00:07:21]} {[%emt 00:00:21]} 16. g4 {[%clk 00:09:18]}
{[%emt 00:00:31]} Rxc3 {[%clk 00:07:02]} {[%emt 00:00:24]} 17. bxc3 {[%clk
00:09:21]} {[%emt 00:00:02]} a4 {[%clk 00:07:02]} {[%emt 00:00:05]} 18. g5
{[%clk 00:08:44]} {[%emt 00:00:42]} Nh5 {[%clk 00:06:51]} {[%emt 00:00:16]} 19.
Rd4 {[%clk 00:08:24]} {[%emt 00:00:24]} axb3 {[%clk 00:06:43]} {[%emt
00:00:14]} 20. axb3 {[%clk 00:08:28]} {[%emt 00:00:02]} Ne5 {[%clk 00:06:38]}
{[%emt 00:00:09]} 21. h3 {[%clk 00:06:39]} {[%emt 00:01:54]} Nxf3 {[%clk
00:06:14]} {[%emt 00:00:29]} 22. Ra4 {[%clk 00:06:39]} {[%emt 00:00:05]} Kd7
{[%clk 00:06:09]} {[%emt 00:00:09]} 23. Rb4 {[%clk 00:06:23]} {[%emt 00:00:21]}
Qc6 {[%clk 00:05:46]} {[%emt 00:00:27]} 24. Kb2 {[%clk 00:06:14]} {[%emt
00:00:14]} b5 {[%clk 00:04:40]} {[%emt 00:01:11]} 25. Ra1 {[%clk 00:04:45]}
{[%emt 00:01:34]} Qc5 {[%emt 00:01:18]} 26. Ra5 {[%clk 00:04:15]} Rc8 {[%clk
00:04:01]} {[%emt 00:00:06]} 27. Rc4 {[%clk 00:04:16]} {[%emt 00:00:04]} bxc4
{[%clk 00:03:44]} {[%emt 00:00:22]} 28. Rxc5 {[%clk 00:04:17]} {[%emt
00:00:04]} dxc5 {[%clk 00:03:46]} {[%emt 00:00:02]} 29. Qxh7 {[%clk 00:04:11]}
{[%emt 00:00:11]} Ke6 {[%clk 00:03:41]} {[%emt 00:00:10]} 30. b4 {[%clk
00:03:20]} {[%emt 00:00:56]} Nd2 {[%clk 00:02:45]} {[%emt 00:01:01]} 0-1